[Event "Kupreichik Memorial Rapid 2019"]
[Site "Minsk"]
[Date "2019.08.16"]
[Round "6.12"]
[White "Teterev, Vitaly"]
[Black "Kharin, Mikhail"]
[Result "1-0"]
[ECO "C42"]
[WhiteElo "2474"]
[BlackElo "2156"]
[Annotator "ChessBase"]
[PlyCount "85"]
[EventDate "2019.08.15"]
[EventType "swiss"]
[EventCountry "BLR"]
[SourceTitle "playchess.com"]
[Source "ChessBase"]
[SourceQuality "1"]
[TimeControl "900+10"]

1. e4 {[%emt 0:00:00]} e5 {[%emt 0:00:00]} 2. Nf3 {[%emt 0:00:00]} Nf6 {[%emt 0:00:00]} 3. d3 {[%emt 0:00:06]} Nc6 {[%emt 0:00:09]} 4. c3 {[%emt 0:00:11]} d5 {[%emt 0:00:10]} 5. Nbd2 {[%emt 0:00:03]} Be7 {[%emt 0:01:13]} 6. Be2 {[%emt 0:00:05]} O-O {[%emt 0:00:02]} 7. O-O {[%emt 0:00:35]} Re8 {[%emt 0:00:22]} 8. b4 {[%emt 0:00:06]} a6 {[%emt 0:01:00]} 9. Bb2 {[%emt 0:00:32]} h6 {[%emt 0:02:29]} 10. Re1 {[%emt 0:00:10]} Be6 {[%emt 0:00:16]} 11. Bf1 {[%emt 0:00:16]} dxe4 {[%emt 0:01:59]} 12. dxe4 {[%emt 0:00:03]} Bf8 {[%emt 0:00:18]} 13. a4 {[%emt 0:00:15]} Bg4 {[%emt 0:00:40]} 14. Qc2 {[%emt 0:00:31]} Qe7 {[%emt 0:01:09]} 15. h3 {[%emt 0:00:16]} Bh5 {[%emt 0:00:16]} 16. Nh4 {[%emt 0:00:15]} Nd7 {[%emt 0:00:43]} 17. Nf5 {[%emt 0:00:20]} Qf6 {[%emt 0:00:07]} 18. Nc4 {[%emt 0:00:30]} Bg6 {[%emt 0:00:12]} 19. Nce3 {[%emt 0:00:28]} Ne7 {[%emt 0:00:20]} 20. Rad1 {[%emt 0:01:46]} Rad8 {[%emt 0:00:22]} 21. Nxe7+ {[%emt 0:01:30]} Qxe7 {[%emt 0:01:10]} 22. a5 {[%emt 0:01:29]} Nf6 {[%emt 0:00:13]} 23. f3 {[%emt 0:00:33]} Rxd1 {[%emt 0:00:04]} 24. Rxd1 {[%emt 0:00:06]} Rd8 {[%emt 0:00:04]} 25. Bc1 {[%emt 0:01:20]} Rxd1 {[%emt 0:00:25]} 26. Qxd1 {[%emt 0:00:01]} Qd6 {[%emt 0:00:02]} 27. Qb3 {[%emt 0:00:29]} c6 {[%emt 0:00:48]} 28. Nc4 {[%emt 0:00:45]} Qe6 {[%emt 0:00:15]} 29. Qb2 {[%emt 0:00:57]} Be7 {[%emt 0:01:11]} 30. Qf2 {[%emt 0:00:11]} c5 {[%emt 0:01:52]} 31. bxc5 {[%emt 0:00:06]} Nd7 {[%emt 0:00:02]} 32. Ba3 {[%emt 0:01:20]} Qc6 {[%emt 0:00:11]} 33. Nd6 {[%emt 0:00:16]} Kh7 {[%emt 0:00:41]} 34. Bb4 {[%emt 0:00:46]} f6 {[%emt 0:00:19]} 35. Kh2 {[%emt 0:01:00]} Qc7 {[%emt 0:00:24]} 36. Qe3 {[%emt 0:00:28]} Nb8 {[%emt 0:00:15]} 37. Qd3 {[%emt 0:00:22]} Nc6 {[%emt 0:00:18]} 38. Qd5 {[%emt 0:00:09]} Bxd6 {[%emt 0:01:04]} 39. cxd6 {[%emt 0:00:05]} Qd7 {[%emt 0:00:05]} 40. Bc4 {[%emt 0:00:08]} Be8 {[%emt 0:00:02]} 41. Qg8+ {[%emt 0:00:21]} Kg6 {[%emt 0:00:01]} 42. Be6 {[%emt 0:00:10]} Bf7 {[%emt 0:00:32]} 43. Bf5+ {[%emt 0:00:03]} 1-0

[Event "Kupreichik Memorial Rapid 2019"]
[Site "Minsk"]
[Date "2019.08.16"]
[Round "6.13"]
[White "Siniauski, Artsiom"]
[Black "Balashov, Yuri S"]
[Result "1/2-1/2"]
[ECO "C95"]
[WhiteElo "2142"]
[BlackElo "2474"]
[Annotator "ChessBase"]
[PlyCount "154"]
[EventDate "2019.08.15"]
[EventType "swiss"]
[EventCountry "BLR"]
[SourceTitle "playchess.com"]
[Source "ChessBase"]
[SourceQuality "1"]
[TimeControl "900+10"]

1. e4 {[%emt 0:00:00]} e5 {[%emt 0:00:00]} 2. Nf3 {[%emt 0:00:00]} Nc6 {[%emt 0:00:00]} 3. Bb5 {[%emt 0:00:00]} a6 {[%emt 0:00:00]} 4. Ba4 {[%emt 0:00:02]} Nf6 {[%emt 0:00:00]} 5. O-O {[%emt 0:00:06]} Be7 {[%emt 0:00:00]} 6. Re1 {[%emt 0:00:04]} b5 {[%emt 0:00:01]} 7. Bb3 {[%emt 0:00:02]} O-O {[%emt 0:00:03]} 8. h3 {[%emt 0:00:04]} d6 {[%emt 0:00:05]} 9. c3 {[%emt 0:00:03]} Nb8 {[%emt 0:00:03]} 10. d4 {[%emt 0:00:04]} Nbd7 {[%emt 0:00:02]} 11. Nbd2 {[%emt 0:00:12]} c5 {[%emt 0:00:02]} 12. Bc2 {[%emt 0:00:16]} Re8 {[%emt 0:00:16]} 13. b3 {[%emt 0:00:14]} Bf8 {[%emt 0:00:04]} 14. Bb2 {[%emt 0:00:08]} Bb7 {[%emt 0:00:48]} 15. a4 {[%emt 0:00:10]} cxd4 {[%emt 0:01:44]} 16. cxd4 {[%emt 0:00:08]} bxa4 {[%emt 0:00:17]} 17. bxa4 {[%emt 0:00:20]} exd4 {[%emt 0:00:05]} 18. Bxd4 {[%emt 0:01:23]} Nc5 {[%emt 0:00:16]} 19. Bxc5 {[%emt 0:00:27]} dxc5 {[%emt 0:00:03]} 20. e5 {[%emt 0:00:03]} Nd5 {[%emt 0:00:22]} 21. Bxh7+ {[%emt 0:00:36]} Kxh7 {[%emt 0:00:02]} 22. Qb1+ {[%emt 0:00:01]} Kg8 {[%emt 0:00:10]} 23. Qxb7 {[%emt 0:00:04]} Re6 {[%emt 0:01:24]} 24. Qb1 {[%emt 0:00:53]} Rb8 {[%emt 0:00:07]} 25. Qe4 {[%emt 0:00:12]} Rb4 {[%emt 0:00:05]} 26. Qd3 {[%emt 0:00:17]} Rg6 {[%emt 0:01:01]} 27. g3 {[%emt 0:00:56]} Be7 {[%emt 0:00:20]} 28. Re4 {[%emt 0:01:11]} Qd7 {[%emt 0:00:42]} 29. Nc4 {[%emt 0:02:52]} Nb6 {[%emt 0:01:20]} 30. Qxd7 {[%emt 0:00:29]} Nxd7 {[%emt 0:00:02]} 31. Nfd2 {[%emt 0:00:17]} f6 {[%emt 0:00:48]} 32. exf6 {[%emt 0:00:44]} Bxf6 {[%emt 0:00:02]} 33. Re8+ {[%emt 0:00:25]} Kh7 {[%emt 0:00:02]} 34. Ra3 {[%emt 0:00:24]} Bd4 {[%emt 0:00:12]} 35. Kg2 {[%emt 0:00:21]} Nf6 {[%emt 0:01:12]} 36. Re6 {[%emt 0:00:18]} Nd5 {[%emt 0:00:07]} 37. Rxg6 {[%emt 0:00:24]} Kxg6 {[%emt 0:00:01]} 38. Kf3 {[%emt 0:00:20]} Nc3 {[%emt 0:00:12]} 39. a5 {[%emt 0:00:14]} Nd1 {[%emt 0:01:29]} 40. Ne3 {[%emt 0:00:43]} Nc3 {[%emt 0:00:47]} 41. h4 {[%emt 0:03:11]} Rb8 {[%emt 0:00:38]} 42. g4 {[%emt 0:00:23]} Rf8+ {[%emt 0:00:33]} 43. Nf5 {[%emt 0:00:21]} Kh7 {[%emt 0:00:29]} 44. h5 {[%emt 0:00:05]} Nd5 {[%emt 0:00:11]} 45. Rb3 {[%emt 0:02:34]} Ne7 {[%emt 0:00:07]} 46. Ke4 {[%emt 0:00:04]} Nxf5 {[%emt 0:00:02]} 47. gxf5 {[%emt 0:00:01]} Re8+ {[%emt 0:00:24]} 48. Kf4 {[%emt 0:00:15]} Bxf2 {[%emt 0:00:08]} 49. Nc4 {[%emt 0:00:10]} Rd8 {[%emt 0:00:37]} 50. Kf3 {[%emt 0:00:04]} Be1 {[%emt 0:00:28]} 51. Rb7 {[%emt 0:00:36]} Bc3 {[%emt 0:00:03]} 52. Ra7 {[%emt 0:00:15]} Rd5 {[%emt 0:00:33]} 53. Ne3 {[%emt 0:00:05]} Rd3 {[%emt 0:00:06]} 54. Ke2 {[%emt 0:00:07]} Rd2+ {[%emt 0:00:02]} 55. Kf3 {[%emt 0:00:05]} Bd4 {[%emt 0:01:18]} 56. Ng4 {[%emt 0:00:18]} c4 {[%emt 0:00:17]} 57. Rc7 {[%emt 0:00:08]} c3 {[%emt 0:00:08]} 58. f6 {[%emt 0:00:06]} Rd1 {[%emt 0:00:41]} 59. f7 {[%emt 0:00:11]} Rf1+ {[%emt 0:00:03]} 60. Ke2 {[%emt 0:00:03]} Rf4 {[%emt 0:00:02]} 61. Kd3 {[%emt 0:00:14]} Bf2 {[%emt 0:00:33]} 62. Nxf2 {[%emt 0:00:26]} Rxf2 {[%emt 0:00:02]} 63. Kxc3 {[%emt 0:00:02]} Kh6 {[%emt 0:00:01]} 64. Kd4 {[%emt 0:00:11]} Kxh5 {[%emt 0:00:02]} 65. Ke3 {[%emt 0:00:05]} Rf1 {[%emt 0:00:05]} 66. Ke4 {[%emt 0:00:03]} g5 {[%emt 0:00:03]} 67. Ke5 {[%emt 0:00:16]} Kg6 {[%emt 0:00:03]} 68. Rc6+ {[%emt 0:00:20]} Kxf7 {[%emt 0:00:02]} 69. Rxa6 {[%emt 0:00:01]} g4 {[%emt 0:00:02]} 70. Ra7+ {[%emt 0:00:08]} Kg6 {[%emt 0:00:03]} 71. Ra6+ {[%emt 0:00:08]} Kg5 {[%emt 0:00:01]} 72. Ra8 {[%emt 0:00:04]} Re1+ 73. Kd6 g3 {[%emt 0:00:09]} 74. a6 {[%emt 0:00:10]} Ra1 {[%emt 0:00:12]} 75. a7 {[%emt 0:00:13]} g2 {[%emt 0:00:10]} 76. Rg8+ {[%emt 0:00:04]} Kf4 {[%emt 0:00:01]} 77. Rxg2 {[%emt 0:00:04]} Rxa7 {Ke5+ Kxe5} 1/2-1/2

[Event "Kupreichik Memorial Rapid 2019"]
[Site "Minsk"]
[Date "2019.08.16"]
[Round "6.14"]
[White "Zhukovskij, Viktor"]
[Black "Veremeichik, Vladimir"]
[Result "0-1"]
[ECO "B31"]
[WhiteElo "2028"]
[BlackElo "2282"]
[Annotator "NA"]
[PlyCount "80"]
[EventDate "2019.08.15"]
[EventType "swiss"]
[EventCountry "BLR"]
[SourceTitle "playchess.com"]
[Source "ChessBase"]
[SourceQuality "1"]
[TimeControl "900+10"]

1. e4 {[%emt 0:00:00]} c5 {[%emt 0:00:00]} 2. Nf3 {[%emt 0:00:00]} Nc6 {[%emt 0:00:00]} 3. Bb5 {[%emt 0:00:00]} g6 {[%emt 0:00:00]} 4. Bxc6 {[%emt 0:00:00]} dxc6 {[%emt 0:00:00]} 5. d3 {[%emt 0:00:00]} Qc7 {[%emt 0:00:00]} 6. h3 {[%emt 0:00:41]} e5 {[%emt 0:00:00]} 7. Be3 {[%emt 0:00:11]} b6 {[%emt 0:01:04]} 8. Nbd2 {[%emt 0:00:35]} f6 {[%emt 0:00:25]} 9. a4 {[%emt 0:00:17]} a5 {[%emt 0:00:23]} 10. Nc4 {[%emt 0:00:28]} Be6 {[%emt 0:00:09]} 11. Nfd2 {[%emt 0:01:08]} h5 {[%emt 0:01:17]} 12. c3 {[%emt 0:02:24]} Rb8 {[%emt 0:00:56]} 13. O-O {[%emt 0:02:57]} g5 {[%emt 0:00:14]} 14. d4 {[%emt 0:00:04]} cxd4 {[%emt 0:00:10]} 15. cxd4 exd4 {[%emt 0:00:25]} 16. Bxd4 {[%emt 0:00:18]} c5 {[%emt 0:00:04]} 17. Bc3 {[%emt 0:01:05]} Rh6 {[%emt 0:03:52]} 18. Qe2 {[%emt 0:00:00]} Kf7 {[%emt 0:01:05]} 19. e5 {[%emt 0:00:00]} f5 {[%emt 0:00:25]} 20. Nd6+ {[%emt 0:00:02]} Kg6 {[%emt 0:00:49]} 21. Nf3 {[%emt 0:03:47]} Be7 {[%emt 0:00:23]} 22. h4 {[%emt 0:00:31]} g4 {[%emt 0:00:11]} 23. Ng5 {[%emt 0:00:20]} Bxg5 {[%emt 0:00:01]} 24. hxg5 {[%emt 0:00:02]} Rh7 {[%emt 0:00:01]} 25. Rad1 {[%emt 0:00:51]} Rd7 {[%emt 0:02:32]} 26. Nb5 {[%emt 0:00:28]} Qc6 {[%emt 0:00:41]} 27. Rd6 {[%emt 0:00:10]} Rxd6 {[%emt 0:00:07]} 28. exd6 {[%emt 0:00:02]} Qe4 {[%emt 0:00:02]} 29. Re1 {[%emt 0:01:33]} Qxe2 30. Rxe2 {[%emt 0:00:01]} Bc4 {[%emt 0:01:40]} 31. Rd2 {[%emt 0:01:07]} Rd8 {[%emt 0:00:43]} 32. Nc7 {[%emt 0:00:51]} Kxg5 {[%emt 0:00:35]} 33. d7 {[%emt 0:00:10]} Nf6 {[%emt 0:00:09]} 34. Rd6 {[%emt 0:00:20]} Ne4 {[%emt 0:00:04]} 35. Bd2+ {[%emt 0:00:14]} f4 {[%emt 0:00:10]} 36. Ne6+ {[%emt 0:00:11]} Bxe6 {[%emt 0:00:03]} 37. Rxe6 {[%emt 0:00:02]} Nxd2 {[%emt 0:00:02]} 38. Re7 {[%emt 0:00:08]} Kf6 {[%emt 0:00:21]} 39. Rh7 {[%emt 0:00:01]} Nc4 {[%emt 0:00:08]} 40. Kf1 {[%emt 0:00:19]} Ke6 {[%emt 0:00:13]} 0-1

[Event "Kupreichik Memorial Rapid 2019"]
[Site "Minsk"]
[Date "2019.08.16"]
[Round "6.15"]
[White "Sarbay, Aleksandr"]
[Black "Pakhomov, Alexey"]
[Result "0-1"]
[ECO "B01"]
[WhiteElo "2115"]
[BlackElo "2315"]
[Annotator "NA"]
[PlyCount "78"]
[EventDate "2019.08.15"]
[EventType "swiss"]
[EventCountry "BLR"]
[SourceTitle "playchess.com"]
[Source "ChessBase"]
[SourceQuality "1"]
[TimeControl "900+10"]

1. e4 {[%emt 0:00:00]} d5 {[%emt 0:00:00]} 2. exd5 {[%emt 0:00:03]} Qxd5 {[%emt 0:00:00]} 3. Nc3 {[%emt 0:00:06]} Qd6 {[%emt 0:00:00]} 4. d4 {[%emt 0:01:51]} a6 {[%emt 0:00:00]} 5. Bc4 {[%emt 0:02:23]} Nf6 {[%emt 0:00:13]} 6. Nge2 {[%emt 0:00:10]} b5 {[%emt 0:00:27]} 7. Bb3 {[%emt 0:01:00]} Bb7 {[%emt 0:00:47]} 8. Bf4 {[%emt 0:00:27]} Qd8 {[%emt 0:01:42]} 9. d5 {[%emt 0:01:18]} c5 {[%emt 0:01:41]} 10. dxc6 {[%emt 0:00:10]} Nxc6 {[%emt 0:00:07]} 11. O-O {[%emt 0:00:56]} e6 {[%emt 0:00:02]} 12. Qxd8+ {[%emt 0:00:18]} Rxd8 {[%emt 0:00:18]} 13. Rad1 {[%emt 0:00:04]} Rc8 {[%emt 0:00:49]} 14. Bg5 {[%emt 0:01:50]} Be7 {[%emt 0:00:20]} 15. Bxf6 {[%emt 0:00:04]} gxf6 {[%emt 0:01:07]} 16. Ne4 {[%emt 0:00:37]} Rd8 {[%emt 0:00:28]} 17. c3 {[%emt 0:01:22]} f5 {[%emt 0:00:24]} 18. N4g3 {[%emt 0:00:17]} O-O {[%emt 0:00:30]} 19. Nf4 {[%emt 0:00:43]} Bc8 {[%emt 0:01:25]} 20. a4 {[%emt 0:00:47]} Na5 {[%emt 0:00:08]} 21. Bc2 {[%emt 0:00:16]} b4 {[%emt 0:00:49]} 22. cxb4 {[%emt 0:00:26]} Bxb4 {[%emt 0:00:02]} 23. Nd3 {[%emt 0:00:38]} Bd6 {[%emt 0:00:20]} 24. b4 {[%emt 0:00:14]} Nc6 {[%emt 0:00:02]} 25. b5 {[%emt 0:00:58]} Nd4 {[%emt 0:00:02]} 26. Bb1 {[%emt 0:00:27]} axb5 {[%emt 0:00:05]} 27. axb5 {[%emt 0:00:02]} Nxb5 {[%emt 0:00:02]} 28. Nh5 {[%emt 0:00:11]} Nc3 {[%emt 0:00:09]} 29. Rd2 {[%emt 0:00:24]} Ba6 {[%emt 0:02:00]} 30. Bc2 {[%emt 0:00:16]} Be7 {[%emt 0:00:18]} 31. Ra1 {[%emt 0:00:43]} Bb5 {[%emt 0:00:15]} 32. Ra7 {[%emt 0:00:17]} Ra8 {[%emt 0:00:46]} 33. Rxa8 Rxa8 {[%emt 0:00:02]} 34. f3 {[%emt 0:00:38]} Bg5 {[%emt 0:00:32]} 35. f4 {[%emt 0:00:04]} Bd8 {[%emt 0:00:16]} 36. h3 {[%emt 0:00:35]} Bb6+ {[%emt 0:00:02]} 37. Kh2 {[%emt 0:00:03]} Be3 {[%emt 0:00:04]} 38. Rf2 {[%emt 0:00:25]} Bxf2 {[%emt 0:00:10]} 39. Nxf2 {[%emt 0:00:01]} Ra2 {[%emt 0:00:01]} 0-1

[Event "Kupreichik Memorial Rapid 2019"]
[Site "Minsk"]
[Date "2019.08.16"]
[Round "6.16"]
[White "Kochetkov, Vitali"]
[Black "Kiryliuk, Ilya"]
[Result "1/2-1/2"]
[ECO "E06"]
[WhiteElo "2266"]
[BlackElo "1948"]
[Annotator "NA"]
[PlyCount "56"]
[EventDate "2019.08.15"]
[EventType "swiss"]
[EventCountry "BLR"]
[SourceTitle "playchess.com"]
[Source "ChessBase"]
[SourceQuality "1"]
[TimeControl "900+10"]

1. d4 {[%emt 0:00:00]} Nf6 {[%emt 0:00:00]} 2. Nf3 {[%emt 0:00:00]} d5 {[%emt 0:00:00]} 3. c4 {[%emt 0:00:01]} e6 {[%emt 0:00:00]} 4. g3 {[%emt 0:00:08]} Be7 {[%emt 0:00:02]} 5. Bg2 {[%emt 0:00:02]} O-O {[%emt 0:00:02]} 6. O-O {[%emt 0:00:04]} dxc4 {[%emt 0:01:08]} 7. Qa4 {[%emt 0:00:16]} Bd7 {[%emt 0:00:26]} 8. Qxc4 {[%emt 0:00:05]} Bc6 {[%emt 0:00:02]} 9. Nc3 {[%emt 0:00:23]} Nbd7 {[%emt 0:00:03]} 10. Rd1 {[%emt 0:00:30]} Nb6 {[%emt 0:00:03]} 11. Qd3 {[%emt 0:00:21]} Na4 {[%emt 0:03:30]} 12. Nxa4 {[%emt 0:01:45]} Bxa4 {[%emt 0:00:02]} 13. b3 {[%emt 0:00:09]} Bc6 {[%emt 0:00:01]} 14. Bg5 {[%emt 0:00:25]} Be4 {[%emt 0:00:12]} 15. Qe3 {[%emt 0:00:43]} Qd5 {[%emt 0:00:11]} 16. Bxf6 {[%emt 0:01:13]} Bxf6 {[%emt 0:00:04]} 17. Rac1 {[%emt 0:00:02]} Bxf3 {[%emt 0:03:41]} 18. Bxf3 {[%emt 0:00:05]} Qa5 {[%emt 0:00:01]} 19. Qc3 {[%emt 0:00:43]} Qxc3 {[%emt 0:00:10]} 20. Rxc3 {[%emt 0:00:06]} c6 {[%emt 0:00:01]} 21. e3 {[%emt 0:00:45]} a5 {[%emt 0:00:21]} 22. Rc4 {[%emt 0:00:26]} Rfd8 {[%emt 0:00:12]} 23. Rdc1 {[%emt 0:00:11]} g6 {[%emt 0:00:10]} 24. h4 {[%emt 0:00:22]} h5 {[%emt 0:00:35]} 25. Rc5 {[%emt 0:00:09]} Be7 {[%emt 0:00:05]} 26. R5c4 {[%emt 0:00:05]} Kg7 {[%emt 0:00:07]} 27. Kg2 {[%emt 0:00:01]} Kf6 {[%emt 0:00:15]} 28. R1c2 {[%emt 0:00:17]} Bb4 {[%emt 0:00:15]} 1/2-1/2

[Event "Kupreichik Memorial Rapid 2019"]
[Site "Minsk"]
[Date "2019.08.16"]
[Round "6.17"]
[White "Romanovskij, Nikita"]
[Black "Maryasin, Boris"]
[Result "0-1"]
[ECO "D25"]
[WhiteElo "1869"]
[BlackElo "2302"]
[Annotator "NA"]
[PlyCount "86"]
[EventDate "2019.08.15"]
[EventType "swiss"]
[EventCountry "BLR"]
[SourceTitle "playchess.com"]
[Source "ChessBase"]
[SourceQuality "1"]
[TimeControl "900+10"]

1. d4 {[%emt 0:00:00]} d5 {[%emt 0:00:00]} 2. c4 {[%emt 0:00:00]} dxc4 {[%emt 0:00:00]} 3. Nf3 {[%emt 0:00:04]} Nf6 {[%emt 0:00:00]} 4. e3 {[%emt 0:00:02]} b5 {[%emt 0:00:00]} 5. a4 {[%emt 0:00:23]} b4 {[%emt 0:00:00]} 6. Bxc4 {[%emt 0:00:03]} e6 {[%emt 0:00:00]} 7. O-O {[%emt 0:00:09]} Bb7 {[%emt 0:00:03]} 8. Qe2 {[%emt 0:00:19]} Be7 {[%emt 0:00:11]} 9. a5 {[%emt 0:00:48]} O-O {[%emt 0:00:26]} 10. Nbd2 {[%emt 0:00:25]} c5 {[%emt 0:00:33]} 11. dxc5 {[%emt 0:01:13]} Nbd7 {[%emt 0:00:03]} 12. a6 {[%emt 0:02:33]} Bxf3 {[%emt 0:00:24]} 13. Nxf3 {[%emt 0:00:14]} Nxc5 {[%emt 0:00:07]} 14. Rd1 {[%emt 0:00:53]} Qb6 {[%emt 0:00:03]} 15. b3 {[%emt 0:00:05]} Nfe4 {[%emt 0:00:33]} 16. Bb2 {[%emt 0:00:15]} Bf6 {[%emt 0:00:05]} 17. Bxf6 {[%emt 0:00:42]} Nxf6 {[%emt 0:00:02]} 18. Rd4 {[%emt 0:00:30]} Rad8 {[%emt 0:00:49]} 19. Rad1 {[%emt 0:00:31]} Rxd4 {[%emt 0:00:18]} 20. Rxd4 {[%emt 0:00:06]} Nfe4 {[%emt 0:00:38]} 21. Qc2 {[%emt 0:01:02]} Nc3 {[%emt 0:00:39]} 22. Rh4 {[%emt 0:00:27]} g6 {[%emt 0:00:14]} 23. Qd2 {[%emt 0:03:18]} Nxa6 {[%emt 0:01:28]} 24. Bxa6 {[%emt 0:00:50]} Qxa6 {[%emt 0:00:03]} 25. Rxb4 {[%emt 0:00:07]} Nd5 {[%emt 0:00:46]} 26. Rc4 {[%emt 0:00:57]} Rb8 {[%emt 0:00:38]} 27. Qd1 {[%emt 0:00:45]} Rxb3 {[%emt 0:00:22]} 28. Rc1 {[%emt 0:00:42]} Qd3 {[%emt 0:00:33]} 29. Qxd3 {[%emt 0:00:53]} Rxd3 {[%emt 0:00:02]} 30. Ra1 {[%emt 0:00:01]} Nc3 {[%emt 0:00:11]} 31. Kf1 {[%emt 0:00:22]} Rd1+ {[%emt 0:00:14]} 32. Rxd1 {[%emt 0:00:01]} Nxd1 33. Ke2 Nc3+ {[%emt 0:00:04]} 34. Kd3 {[%emt 0:00:01]} Nd5 {[%emt 0:00:03]} 35. Kc4 {[%emt 0:00:05]} Kg7 {[%emt 0:00:14]} 36. Nd4 {[%emt 0:00:48]} a5 {[%emt 0:00:27]} 37. e4 {[%emt 0:00:29]} Nf4 {[%emt 0:00:26]} 38. g3 {[%emt 0:00:01]} Nh3 {[%emt 0:00:01]} 39. f4 {[%emt 0:00:05]} g5 {[%emt 0:00:20]} 40. fxg5 {[%emt 0:00:59]} Nxg5 {[%emt 0:00:02]} 41. e5 {[%emt 0:00:01]} Kg6 {[%emt 0:00:34]} 42. g4 {[%emt 0:00:07]} Ne4 {[%emt 0:00:18]} 43. Ne2 {[%emt 0:00:42]} Kg5 {[%emt 0:00:11]} 0-1

[Event "Kupreichik Memorial Rapid 2019"]
[Site "Minsk"]
[Date "2019.08.16"]
[Round "6.18"]
[White "Kochetkov, German"]
[Black "Tyurin, Artem"]
[Result "1-0"]
[ECO "A03"]
[WhiteElo "2277"]
[BlackElo "2057"]
[Annotator "NA"]
[PlyCount "73"]
[EventDate "2019.08.15"]
[EventType "swiss"]
[EventCountry "BLR"]
[SourceTitle "playchess.com"]
[Source "ChessBase"]
[SourceQuality "1"]
[TimeControl "900+10"]

1. f4 {[%emt 0:00:00]} d5 {[%emt 0:00:13]} 2. Nf3 {[%emt 0:00:00]} Nf6 {[%emt 0:00:16]} 3. g3 {[%emt 0:00:00]} c5 {[%emt 0:00:09]} 4. Bg2 {[%emt 0:00:00]} Nc6 {[%emt 0:00:02]} 5. O-O {[%emt 0:00:02]} e6 {[%emt 0:00:34]} 6. d3 {[%emt 0:00:03]} Be7 {[%emt 0:00:25]} 7. Nc3 {[%emt 0:00:06]} d4 {[%emt 0:00:22]} 8. Nb5 {[%emt 0:00:05]} O-O {[%emt 0:00:11]} 9. c4 {[%emt 0:00:11]} a6 {[%emt 0:00:35]} 10. Na3 {[%emt 0:00:03]} Qc7 {[%emt 0:00:30]} 11. Nc2 {[%emt 0:00:27]} b6 {[%emt 0:00:20]} 12. a3 {[%emt 0:00:20]} Bb7 {[%emt 0:00:04]} 13. Rb1 {[%emt 0:00:02]} b5 {[%emt 0:00:53]} 14. b3 {[%emt 0:00:04]} Rad8 {[%emt 0:00:22]} 15. Bd2 {[%emt 0:00:11]} Rfe8 {[%emt 0:00:11]} 16. Qe1 {[%emt 0:00:15]} Nd7 {[%emt 0:01:32]} 17. e4 {[%emt 0:02:11]} dxe3 {[%emt 0:00:23]} 18. Bxe3 {[%emt 0:00:02]} Bf6 {[%emt 0:00:16]} 19. Qf2 {[%emt 0:00:10]} e5 {[%emt 0:00:39]} 20. Nd2 {[%emt 0:03:00]} Nd4 {[%emt 0:02:21]} 21. Bxd4 {[%emt 0:01:11]} cxd4 {[%emt 0:03:10]} 22. Bxb7 {[%emt 0:00:06]} Qxb7 23. Ne4 {[%emt 0:00:09]} exf4 {[%emt 0:00:19]} 24. Nd6 {[%emt 0:02:13]} fxg3 {[%emt 0:00:56]} 25. hxg3 {[%emt 0:00:04]} Qb6 {[%emt 0:00:47]} 26. Nxe8 {[%emt 0:00:08]} Rxe8 {[%emt 0:00:01]} 27. Nb4 {[%emt 0:00:25]} Qd6 {[%emt 0:01:09]} 28. Rbe1 {[%emt 0:01:54]} Rf8 {[%emt 0:01:22]} 29. Kg2 {[%emt 0:00:35]} a5 {[%emt 0:00:20]} 30. Nd5 {[%emt 0:00:30]} Qxa3 {[%emt 0:00:18]} 31. Qf5 {[%emt 0:00:06]} Qd6 {[%emt 0:00:25]} 32. Nxf6+ {[%emt 0:01:43]} Nxf6 {[%emt 0:00:07]} 33. Qxb5 {[%emt 0:00:01]} Ng4 {[%emt 0:00:29]} 34. Rf4 {[%emt 0:00:49]} Ne3+ {[%emt 0:00:12]} 35. Kf3 {[%emt 0:00:12]} Rb8 {[%emt 0:00:37]} 36. Rxd4 {[%emt 0:01:24]} Qc7 {[%emt 0:00:17]} 37. Rxe3 {[%emt 0:00:07]} 1-0

[Event "Kupreichik Memorial Rapid 2019"]
[Site "Minsk"]
[Date "2019.08.16"]
[Round "6.19"]
[White "Svjatocho, Andrej"]
[Black "Tsaruk, Maksim"]
[Result "0-1"]
[ECO "C45"]
[WhiteElo "1995"]
[BlackElo "2230"]
[Annotator "NA"]
[PlyCount "44"]
[EventDate "2019.08.15"]
[EventType "swiss"]
[EventCountry "BLR"]
[SourceTitle "playchess.com"]
[Source "ChessBase"]
[SourceQuality "1"]
[TimeControl "900+10"]

1. e4 {[%emt 0:00:00]} e5 {[%emt 0:00:00]} 2. Nf3 {[%emt 0:00:00]} Nc6 {[%emt 0:00:00]} 3. d4 {[%emt 0:00:00]} exd4 {[%emt 0:00:00]} 4. Nxd4 {[%emt 0:00:00]} Bc5 {[%emt 0:00:00]} 5. Nxc6 {[%emt 0:00:06]} Qf6 {[%emt 0:00:00]} 6. Qd2 {[%emt 0:00:02]} bxc6 {[%emt 0:02:07]} 7. Nc3 {[%emt 0:00:37]} Rb8 {[%emt 0:01:19]} 8. Bd3 {[%emt 0:00:52]} Ne7 {[%emt 0:00:05]} 9. O-O {[%emt 0:00:17]} O-O {[%emt 0:00:23]} 10. Kh1 {[%emt 0:01:59]} Bd4 {[%emt 0:07:31]} 11. Nd1 {[%emt 0:01:57]} d5 {[%emt 0:00:07]} 12. exd5 {[%emt 0:01:06]} cxd5 {[%emt 0:00:02]} 13. c3 {[%emt 0:00:21]} Be5 {[%emt 0:00:29]} 14. b3 {[%emt 0:02:05]} h6 {[%emt 0:00:02]} 15. f4 {[%emt 0:00:48]} Bd6 {[%emt 0:00:01]} 16. Bb2 {[%emt 0:00:45]} c5 {[%emt 0:00:58]} 17. Ba3 {[%emt 0:01:46]} Ng6 {[%emt 0:01:53]} 18. Bxg6 {[%emt 0:01:17]} Qxg6 {[%emt 0:00:02]} 19. Qxd5 {[%emt 0:00:12]} Bb7 {[%emt 0:00:00]} 20. Qd2 {[%emt 0:00:04]} Rbd8 {[%emt 0:00:01]} 21. Qf2 {[%emt 0:00:47]} Bxf4 {[%emt 0:00:02]} 22. Bxc5 {[%emt 0:00:04]} Rd2 {[%emt 0:00:03]} 0-1

[Event "Kupreichik Memorial Rapid 2019"]
[Site "Minsk"]
[Date "2019.08.16"]
[Round "6.20"]
[White "Leinov, Roman"]
[Black "Oblamski, Vladimir"]
[Result "0-1"]
[ECO "D02"]
[WhiteElo "2189"]
[BlackElo "2088"]
[Annotator "NA"]
[PlyCount "42"]
[EventDate "2019.08.15"]
[EventType "swiss"]
[EventCountry "BLR"]
[SourceTitle "playchess.com"]
[Source "ChessBase"]
[SourceQuality "1"]
[TimeControl "900+10"]

1. d4 {[%emt 0:00:00]} d5 {[%emt 0:00:00]} 2. Nf3 {[%emt 0:00:00]} e6 {[%emt 0:00:05]} 3. g3 {[%emt 0:00:00]} Nf6 {[%emt 0:00:24]} 4. Bg2 {[%emt 0:00:02]} Be7 {[%emt 0:00:00]} 5. O-O {[%emt 0:00:07]} O-O {[%emt 0:00:02]} 6. c4 {[%emt 0:00:07]} dxc4 {[%emt 0:00:01]} 7. Na3 {[%emt 0:01:15]} Bxa3 {[%emt 0:01:47]} 8. bxa3 {[%emt 0:00:01]} b5 {[%emt 0:00:24]} 9. Ne5 {[%emt 0:00:37]} Nd5 {[%emt 0:00:52]} 10. e4 {[%emt 0:00:06]} Nb6 {[%emt 0:00:01]} 11. d5 {[%emt 0:01:37]} exd5 {[%emt 0:01:01]} 12. exd5 {[%emt 0:00:03]} Bb7 {[%emt 0:00:02]} 13. Nc6 {[%emt 0:00:10]} Qf6 {[%emt 0:01:56]} 14. Bf4 {[%emt 0:07:38]} Nxc6 {[%emt 0:00:27]} 15. dxc6 {[%emt 0:00:07]} Bxc6 {[%emt 0:00:02]} 16. Bh3 {[%emt 0:00:38]} Nd5 {[%emt 0:00:54]} 17. Bd2 {[%emt 0:00:13]} Rad8 {[%emt 0:00:22]} 18. Qc1 {[%emt 0:00:10]} h6 {[%emt 0:00:10]} 19. Ba5 {[%emt 0:00:17]} Qf3 {[%emt 0:01:33]} 20. Bg2 {[%emt 0:00:05]} Qxg2+ {[%emt 0:00:03]} 21. Kxg2 {[%emt 0:00:05]} Nf4+ {[%emt 0:00:00]} 0-1